[Event "FIDE WCCC U10 2018"]
[Site "Santiago de Compostela"]
[Date "2018.11.14"]
[Round "10"]
[White "Atanasov, Anthony"]
[Black "Zhao, Erick"]
[Result "0-1"]
[ECO "A45"]
[WhiteElo "1916"]
[BlackElo "1957"]
[Annotator "NA RC"]
[PlyCount "102"]
[EventDate "2018.11.04"]
[EventType "swiss"]
[EventCountry "ESP"]
[SourceTitle "playchess.com"]
[Source "ChessBase"]
[SourceQuality "1"]
[TimeControl "40/5400+30:1800+30"]

{[%evp 14,91,4,32767,18,23,44,22,19,20,29,32767,35,32767,32767,32767,32767,32767,32767,43,43,28,32767,32767,32767,32767,32767,32767,32767,32767,32767,32767,20,10,32767,0,40,32767,32767,32767,32767,29,32767,36,35,38,49,56,32767,52,58,32767,56,57,60,0,78,51,49,32,32767,0,87,32767,67,3,32767,32767,54,32767,32767,19,32767,-13,32767,0,114,89,158,-8]} 1. d4 {[%emt 0:00:00]} Nf6 {[%emt 0:00:00]} 2. Bf4 {[%emt 0:00:00]} g6 {[%emt 0:00:20]} 3. e3 {[%emt 0:00:00]} Bg7 {[%emt 0:00:45]} 4. Be2 {[%emt 0:00:00]} O-O {[%emt 0:00:11]} 5. Nf3 {[%emt 0:00:07]} d5 {[%emt 0:00:42]} 6. O-O {[%emt 0:00:18]} c5 {[%emt 0:01:02]} 7. c3 {[%emt 0:02:56]} Nc6 {[%emt 0:01:30] D02: 1 d4 d5 2 Nf3 sidelines, including 2...Nf6 3 g3 and 2...Nf6 3 Bf4} 8. Nbd2 {[%emt 0:09:07]} Nd7 {[%emt 0:01:37]} 9. Qb3 {[%emt 0:07:38]} c4 {[%emt 0:07:09] LiveBook: 5 Games} 10. Qd1 {[%emt 0:06:25]} (10. Qa3 b5 11. e4 Nb6 12. Qc5 dxe4 13. Nxe4 Qd5 14. Qxd5 Nxd5 15. Bg3 {1-0 (76) Artemiev,V (2691)-Ding,L (2777) Huaian 2017}) 10... e5 $146 {[%emt 0:14:25]} ({Predecessor:} 10... Re8 11. e4 e6 12. h3 b5 13. a3 Bb7 14. e5 a5 {1-0 (47) Klevets,K (1834)-Frolov,A (2086) St Petersburg 2018}) 11. dxe5 {[%emt 0:06:44]} Ndxe5 {[%emt 0:00:24]} 12. Nxe5 {[%emt 0:00:30]} Bxe5 {[%emt 0:02:14]} 13. Bxe5 {[%emt 0:02:05]} Nxe5 {[%emt 0:00:02]} 14. Nf3 {[%emt 0:00:01]} Nc6 {[%emt 0:02:02]} 15. Qd2 {[%emt 0:01:46]} Qa5 {[%emt 0:04:06]} 16. Rfd1 {[%emt 0:09:16]} Rd8 {[%emt 0:00:36]} 17. h3 {[%emt 0:06:21]} b5 {[%emt 0:13:37]} 18. Nd4 {[%emt 0:05:03]} Bb7 {[%emt 0:03:12]} 19. b4 {[%emt 0:00:30]} Qb6 {[%emt 0:00:28]} 20. Nxc6 Bxc6 {[%emt 0:01:23]} 21. a3 {[%emt 0:12:18]} a5 22. Bf3 {[%emt 0:14:41]} Rd7 {[%emt 0:07:58]} 23. Ra2 {[%emt 0:15:11]} Ra6 {[%emt 0:03:18]} 24. Qe2 {[%emt 0:03:50]} Qa7 {[%emt 0:06:34]} 25. Rc2 {[%emt 0:04:58]} axb4 {[%emt 0:03:23]} 26. axb4 {[%emt 0:00:01]} Ra3 {[%emt 0:00:48]} 27. Kh2 {[%emt 0:04:06]} Qb8+ {[%emt 0:11:01]} 28. g3 {[%emt 0:02:05]} Qe5 {[%emt 0:00:55]} 29. Rd4 {[%emt 0:02:19]} Qb8 {[%emt 0:05:37]} 30. Qd2 {[%emt 0:00:28]} Qa8 {[%emt 0:01:02]} 31. h4 {[%emt 0:02:32]} h6 {[%emt 0:03:15]} 32. Bg2 {[%emt 0:01:31]} Raa7 $1 {[%emt 0:00:36]} 33. Bh3 {[%emt 0:02:26]} Re7 {[%emt 0:00:32]} 34. Bg2 {[%emt 0:01:51]} (34. Rf4 $14) 34... Red7 {[%emt 0:00:16]} 35. Qd1 {[%emt 0:00:27]} Ra1 {[%emt 0:00:40]} 36. Qf3 {[%emt 0:01:12]} Kg7 {[%emt 0:01:14]} 37. Rcd2 {[%emt 0:00:52]} Qe8 {[%emt 0:02:22]} (37... Re7 $11) 38. Rd1 {[%emt 0:00:52]} Ra3 {[%emt 0:00:14]} 39. Rc1 {[%emt 0:00:32]} Ra2 {[%emt 0:03:53]} 40. Kg1 {[%emt 0:00:00]} Rd6 {[%emt 0:00:00]} 41. Qd1 {[%emt 0:20:06]} Qa8 {[%emt 0:05:52]} 42. h5 {[%emt 0:06:22]} (42. Rd2 $16) 42... g5 {[%emt 0:08:04]} 43. f4 Re6 44. Rd2 {[%emt 0:02:15]} f6 {[%emt 0:01:58]} (44... gxf4 $11 {keeps the balance.} 45. gxf4 Kf8) 45. fxg5 {[%emt 0:04:19]} hxg5 {[%emt 0:01:21]} 46. Qg4 $11 {[%emt 0:00:28]} (46. Rxa2 $16 Qxa2 47. Ra1 (47. Bxd5 $2 Bxd5 48. Qxd5 Rxe3 $19)) 46... Rxd2 {[%emt 0:13:56]} 47. Qxe6 {[%emt 0:00:30]} Qe8 {[%emt 0:00:44]} 48. Qd6 Qxe3+ {[%emt 0:00:14]} 49. Kh1 {[%emt 0:00:59]} Qe2 {[%emt 0:00:30]} 50. Qc7+ {[%emt 0:00:34]} Kh6 {[%emt 0:00:08]} 51. Rg1 {[%emt 0:00:30]} Qxh5+ {[%emt 0:00:06]} 0-1

[Event "FIDE WCCC U10 2018"]
[Site "Santiago de Compostela"]
[Date "2018.11.14"]
[Round "10"]
[White "Jin Yueheng"]
[Black "Dang, Anh Minh"]
[Result "1/2-1/2"]
[ECO "D70"]
[WhiteElo "1914"]
[BlackElo "1817"]
[Annotator "NA RC"]
[PlyCount "99"]
[EventDate "2018.11.04"]
[EventType "swiss"]
[EventCountry "ESP"]
[SourceTitle "playchess.com"]
[Source "ChessBase"]
[SourceQuality "1"]
[TimeControl "40/5400+30:1800+30"]

{[%evp 8,95,67,48,32767,32767,32767,32767,32767,32767,91,32767,32767,32767,74,79,76,77,84,16,60,32767,32767,0,0,0,10,8,0,-6,32767,32767,31,37,16,31,32767,9,32767,52,57,50,67,32767,32767,32767,32767,62,100,51,85,20,17,16,19,32767,19,14,32767,0,51,38,82,16,101,10,28,10,18,10,255,8,0,2,32767,8,0,6,0,0,32767,0,32767,32767,32767,32767,0,32767,0,0]} 1. d4 {[%emt 0:00:00]} Nf6 {[%emt 0:00:00]} 2. c4 {[%emt 0:00:00]} g6 {[%emt 0:00:00]} 3. Nf3 {[%emt 0:00:00]} d5 {[%emt 0:00:00]} 4. cxd5 {[%emt 0:00:00]} Nxd5 {[%emt 0:00:03] LiveBook: 126 Partien} 5. e4 {[%emt 0:00:00]} Nb6 {[%emt 0:00:30]} 6. h3 {[%emt 0:00:00]} Bg7 {[%emt 0:00:16]} 7. Nc3 {[%emt 0:00:58]} O-O {[%emt 0:01:02]} 8. Be2 {[%emt 0:00:54]} Kh8 {[%emt 0:07:30] D70: Grünfeld: Unusual White 3rd moves (met by ...d5)} (8... Nc6 9. Be3 f5 10. exf5 Bxf5 11. O-O Qd6 12. Qd2 Rad8 13. Rad1 Kh8 14. Bh6 e5 15. Bxg7+ Kxg7 16. d5 Ne7 17. Nb5 Qf6 18. Nxc7 Nexd5 19. Nxd5 Nxd5 {0-1 (60) Shariyazdanov,A (2526)-Artemiev,V (2706) Sochi 2018}) 9. O-O {[%emt 0:00:31]} f5 $146 {[%emt 0:00:18]} ({Predecessor:} 9... c6 10. Be3 f5 11. Qd2 N8d7 12. Bh6 Nf6 13. Bxg7+ Kxg7 14. exf5 Bxf5 15. Bd3 Be6 16. Rfe1 {1-0 (35) Jurek,J (2352)-Risch,P (2116) Lenzerheide 2010}) 10. exf5 {[%emt 0:01:58]} Bxf5 {[%emt 0:00:25]} 11. Be3 {[%emt 0:03:04]} Nc6 {[%emt 0:03:28]} 12. Qd2 {[%emt 0:00:42]} e5 {[%emt 0:10:15] [#]} 13. Rad1 {[%emt 0:07:15]} ({White should play} 13. d5 $1 $16 {[%cal Rd5c6]} Nd4 14. Nxd4 exd4 15. Bxd4) 13... e4 {[%emt 0:11:19]} 14. Nh2 {[%emt 0:10:22]} Nd5 {[%emt 0:13:04]} 15. Nxd5 {[%emt 0:09:51]} Qxd5 {[%emt 0:00:10]} 16. b3 {[%emt 0:00:04]} Rad8 {[%emt 0:01:24]} 17. Bc4 {[%emt 0:00:07]} Qd6 {[%emt 0:04:05]} 18. Bf4 {[%emt 0:03:16]} Qe7 {[%emt 0:05:32]} 19. d5 {[%emt 0:01:31]} Ne5 {[%emt 0:01:30]} 20. Bg5 {[%emt 0:00:42]} Bf6 {[%emt 0:00:21]} 21. Bxf6+ {[%emt 0:00:05]} Qxf6 {[%emt 0:00:30]} 22. Qd4 {[%emt 0:01:11]} Nxc4 {[%emt 0:16:58]} 23. bxc4 {[%emt 0:00:45]} Qxd4 {[%emt 0:00:55]} 24. Rxd4 {[%emt 0:00:04]} g5 {[%emt 0:00:49]} 25. Rfd1 {[%emt 0:01:25]} Rfe8 {[%emt 0:02:03]} 26. Nf1 {[%emt 0:00:09]} Bg6 {[%emt 0:00:36]} 27. Re1 {[%emt 0:00:36]} (27. Ne3 $16) 27... Re5 {[%emt 0:01:12]} 28. Rd2 {[%emt 0:03:59]} b5 {[%emt 0:01:35] [#]} 29. cxb5 {[%emt 0:00:26]} (29. Ne3 $1 $16) 29... Rexd5 {[%emt 0:00:30]} 30. Rxd5 {[%emt 0:00:38]} Rxd5 {[%emt 0:00:02]} 31. a4 {[%emt 0:07:10]} Rd4 {[%emt 0:03:56]} 32. Ra1 {[%emt 0:02:13]} Kg7 {[%emt 0:00:52]} 33. a5 {[%emt 0:01:58]} Kf6 {[%emt 0:01:21]} 34. Ne3 {[%emt 0:05:19]} Ke6 {[%emt 0:00:44]} 35. Rb1 {[%emt 0:05:31]} (35. Rc1 $16) 35... Rd6 {[%emt 0:15:00]} (35... Be8 $11) 36. Kf1 {[%emt 0:02:57]} ({White should play} 36. Rc1 $16) 36... Be8 {[%emt 0:01:40]} 37. Rb4 {[%emt 0:01:57]} Kf7 {[%emt 0:02:12]} 38. Ke2 {[%emt 0:00:37]} a6 $2 {[%emt 0:00:31] [#]} (38... h5 $11) 39. bxa6 $2 {[%emt 0:00:31]} ({Better is} 39. Nc4 $1 $18 {[%cal Rc4d6]} Rd8 40. bxa6) 39... Rxa6 {[%emt 0:00:04]} 40. Nc4 {[%emt 0:00:00]} Ke6 {[%emt 0:00:00]} 41. Kd2 {[%emt 0:30:19]} Bc6 {[%emt 0:03:28]} 42. Kc3 {[%emt 0:05:54]} e3 {[%emt 0:06:01]} 43. Nxe3 {[%emt 0:00:24]} Rxa5 {[%emt 0:00:10]} 44. Rc4 {[%emt 0:01:01]} Kd6 {[%emt 0:00:27]} 45. Rd4+ {[%emt 0:00:11]} Ke6 {[%emt 0:04:32]} 46. Rc4 {[%emt 0:00:08]} Kd7 {[%emt 0:02:24]} 47. Rd4+ {[%emt 0:01:17]} Kc8 48. h4 $11 h6 49. hxg5 hxg5 50. g3 1/2-1/2

[Event "FIDE WCCC U10 2018"]
[Site "Santiago de Compostela"]
[Date "2018.11.14"]
[Round "10"]
[White "Uritsky, Yonathan"]
[Black "Bialiauski, Artsiom"]
[Result "0-1"]
[ECO "C45"]
[WhiteElo "1902"]
[BlackElo "1791"]
[Annotator "NA RC"]
[PlyCount "72"]
[EventDate "2018.11.04"]
[EventType "swiss"]
[EventCountry "ESP"]
[SourceTitle "playchess.com"]
[Source "ChessBase"]
[SourceQuality "1"]
[TimeControl "40/5400+30:1800+30"]

{[%evp 16,72,10,-5,28,40,45,15,61,60,60,58,68,42,72,13,32767,32767,48,-19,0,-195,32767,-192,32767,-214,-243,-229,-242,-253,32767,32767,-241,-264,-191,-186,-198,-201,-163,-305,-320,32767,-303,-304,-317,-561,32767,-461,-490,32767,-986,-970,-1027,-29994,-29995,-29995,-1062,-29996,-29997]} 1. e4 {[%emt 0:00:00]} e5 {[%emt 0:00:30]} 2. Nf3 {[%emt 0:00:26]} Nc6 {[%emt 0:00:08]} 3. d4 {[%emt 0:00:13]} exd4 {[%emt 0:00:30]} 4. Nxd4 {[%emt 0:00:18]} Nf6 {[%emt 0:00:39]} 5. Nxc6 {[%emt 0:00:33]} bxc6 {[%emt 0:00:08]} 6. e5 {[%emt 0:00:20]} Qe7 {[%emt 0:00:08]} 7. Qe2 {[%emt 0:00:18]} Nd5 {[%emt 0:00:08]} 8. h4 {[%emt 0:00:23]} d6 {[%emt 0:17:12] C45: Scotch Game} (8... Qe6 9. g3 Nb4 10. c4 Ba6 11. Bf4 d5 12. a3 Bxc4 13. Qd1 Bxf1 14. Kxf1 Na6 15. Nc3 Nc5 16. b4 {1-0 (32) Tomczak,J (2614)-Kramnik,V (2779) Batumi 2018}) 9. c4 {[%emt 0:00:43] LiveBook: 28 Games} Nb4 {[%emt 0:01:44]} 10. a3 {[%emt 0:00:59]} Na6 {[%emt 0:00:05]} 11. exd6 {[%emt 0:01:35]} cxd6 {[%emt 0:04:02]} 12. b4 {[%emt 0:04:50]} Nc7 $146 {[%emt 0:04:13]} ({Predecessor:} 12... Bg4 13. f3 Be6 14. Bb2 Nb8 15. Nc3 Nd7 16. O-O-O {½-½ (34) Ponkratov,P (2603)-Romanov,E (2610) Sochi 2017}) 13. Bb2 {[%emt 0:00:46]} Be6 {[%emt 0:02:25]} 14. Nd2 {[%emt 0:03:03]} d5 {[%emt 0:03:18]} 15. Nf3 {[%emt 0:08:10]} dxc4 {[%emt 0:06:11]} 16. Ne5 {[%emt 0:01:32]} c5 {[%emt 0:07:56]} 17. bxc5 {[%emt 0:42:45]} ({Stronger than} 17. Nxc4 cxb4 18. Ne5 Bd5 $15) (17. O-O-O $16 Rd8 18. Rxd8+ (18. Nxc4 Rxd1+ 19. Qxd1 cxb4 $15) 18... Qxd8 19. Qc2 (19. Nxc4 cxb4 20. axb4 f6 $15)) 17... Qxc5 {[%emt 0:01:20]} 18. Rd1 $2 {[%emt 0:46:50]} (18. Nxc4 $11 {und Weiss muss sich keine Sorgen machen.} Be7 19. Bxg7) 18... c3 {[%emt 0:16:26]} 19. Bc1 {[%emt 0:04:13]} Be7 {[%emt 0:01:42]} 20. Qe3 {[%emt 0:04:28]} Qxe3+ {[%emt 0:00:39]} 21. fxe3 {[%emt 0:00:06]} Bf6 {[%emt 0:01:04]} 22. Nf3 {[%emt 0:00:19]} Rb8 {[%emt 0:09:26]} 23. Be2 {[%emt 0:03:33]} Bb3 {[%emt 0:13:58]} 24. Rd6 {[%emt 0:01:12]} Ke7 {[%emt 0:03:08]} 25. Rc6 {[%emt 0:00:27]} Rhc8 {[%emt 0:01:03]} 26. Nd4 {[%emt 0:01:37]} Bd5 {[%emt 0:00:50]} 27. Nf5+ $2 {[%emt 0:02:20]} (27. Rxc3 $17 Bxg2 28. Rg1) 27... Kf8 {[%emt 0:00:40]} 28. Rc5 {[%emt 0:00:32]} Bxg2 {[%emt 0:01:35]} 29. Rg1 {[%emt 0:01:02]} Bh3 {[%emt 0:02:06]} 30. Nd6 $2 {[%emt 0:05:07]} (30. Bg4 {is a better defense.} Bxg4 31. Rxg4) 30... Bxh4+ {[%emt 0:00:11]} 31. Kd1 {[%emt 0:00:06]} Rd8 {[%emt 0:00:06]} 32. Rxc7 {[%emt 0:00:21]} Rxd6+ {[%emt 0:00:15]} 33. Kc2 {[%emt 0:00:09]} Bf5+ {[%emt 0:00:48]} 34. Kxc3 {[%emt 0:00:26]} Bf6+ {[%emt 0:00:12]} 35. Kc4 {[%emt 0:00:39]} Be6+ {[%emt 0:00:06]} 36. Kc5 {[%emt 0:00:18]} Rd5+ {[%emt 0:00:10] Kd4} 0-1

[Event "FIDE WCCC U10 2018"]
[Site "Santiago de Compostela"]
[Date "2018.11.14"]
[Round "10"]
[White "Ansat, Aldiyar"]
[Black "Giang, Tran Nam"]
[Result "1/2-1/2"]
[ECO "B22"]
[WhiteElo "1899"]
[BlackElo "1747"]
[Annotator "NA RC"]
[PlyCount "92"]
[EventDate "2018.11.04"]
[EventType "swiss"]
[EventCountry "ESP"]
[SourceTitle "playchess.com"]
[Source "ChessBase"]
[SourceQuality "1"]
[TimeControl "40/5400+30:1800+30"]

{[%evp 8,92,7,12,32767,32767,32767,32767,32767,32767,32767,32767,32767,32767,32767,32767,32767,32767,31,0,4,9,16,5,9,14,19,0,3,-6,28,32767,21,32767,32767,0,-4,0,-17,-15,0,32767,0,0,32767,0,0,0,32767,0,32767,0,0,0,0,32767,32767,32767,32767,32767,32767,32767,32767,32767,0,0,32767,0,0,0,0,-50,0,0,0,0,0,0,32767,32767,0,-62,0,-8,0,-7,0]} 1. e4 {[%emt 0:00:00]} c5 {[%emt 0:00:00]} 2. c3 {[%emt 0:00:00]} Nf6 {[%emt 0:00:00]} 3. e5 {[%emt 0:00:00]} Nd5 {[%emt 0:00:00]} 4. Nf3 {[%emt 0:00:00]} e6 {[%emt 0:00:00]} 5. Bc4 {[%emt 0:00:00]} Nb6 {[%emt 0:01:35]} 6. Bb3 {[%emt 0:00:00]} d6 {[%emt 0:01:32]} 7. d4 {[%emt 0:00:19]} cxd4 {[%emt 0:00:13]} 8. cxd4 {[%emt 0:00:16]} dxe5 {[%emt 0:00:21]} 9. Nxe5 {[%emt 0:01:42]} Nc6 {[%emt 0:00:06]} 10. Nxc6 {[%emt 0:03:17]} bxc6 {[%emt 0:00:04]} 11. O-O {[%emt 0:00:13]} Be7 {[%emt 0:00:48]} 12. Nc3 {[%emt 0:05:44]} O-O {[%emt 0:01:57]} 13. Bf4 {[%emt 0:02:17]} Ba6 {[%emt 0:01:54] LiveBook: 22 Games B22: Sicilian: 2 c3} 14. Re1 {[%emt 0:00:15]} Bc4 {[%emt 0:01:38]} 15. Bc2 {[%emt 0:04:05]} Re8 {[%emt 0:03:53]} (15... g6 16. Be5 Nd7 17. Bg3 Qb6 18. b3 Bd5 19. Qd3 Rfd8 20. Rad1 Rac8 21. Bb1 {½-½ (43) Tiviakov,S (2697)-Rublevsky,S (2702) Dagomys 2009}) 16. Be5 $146 {[%emt 0:11:32]} ({Predecessor:} 16. Rc1 g6 17. h3 Rc8 18. Ne4 Nd5 19. Be5 Bxa2 20. Ba4 Nb6 21. Bxc6 {½-½ (31) Janisch,M (1964)-Peled,S (2097) ICCF email 2013}) 16... Bd5 {[%emt 0:09:55]} 17. Re3 {[%emt 0:10:54]} g6 {[%emt 0:06:26]} 18. b3 {[%emt 0:09:13]} Bf6 {[%emt 0:05:17]} 19. Qe2 {[%emt 0:03:11]} Qe7 {[%emt 0:08:10]} 20. Ne4 {[%emt 0:05:14]} Bxe4 {[%emt 0:02:37]} 21. Bxe4 {[%emt 0:00:42]} Nd5 {[%emt 0:03:06]} 22. Bxd5 {[%emt 0:02:30]} cxd5 {[%emt 0:00:18]} 23. Rc3 {[%emt 0:02:20]} Rec8 {[%emt 0:05:40]} 24. Rac1 {[%emt 0:08:07]} Rxc3 {[%emt 0:00:58]} 25. Rxc3 {[%emt 0:00:02]} Bxe5 {[%emt 0:00:17]} 26. Qxe5 {[%emt 0:00:28]} Qb4 {[%emt 0:00:54]} 27. Rc2 {[%emt 0:01:07]} a5 {[%emt 0:01:25]} 28. h4 {[%emt 0:04:26]} a4 {[%emt 0:02:12]} 29. h5 {[%emt 0:00:58]} axb3 {[%emt 0:03:33]} 30. axb3 Qb8 {[%emt 0:06:37]} ({Inferior is} 30... Qxb3 {[#]} 31. h6 $1 {[%mdl 512]} Qb1+ 32. Kh2 f6 33. Qxe6+ Kf8 34. Rc7 Qh1+ 35. Kxh1 Ra1+ 36. Kh2 Rh1+ 37. Kxh1 g5 38. Qf7#) 31. Rc7 {[%emt 0:07:38]} Qxb3 {[%emt 0:04:58]} 32. h6 {[%emt 0:00:00]} Qd1+ {[%emt 0:00:14]} 33. Kh2 {[%emt 0:00:01]} Qh5+ {[%emt 0:00:09]} 34. Qxh5 {[%emt 0:00:01]} gxh5 {[%emt 0:00:01]} 35. Kg3 {[%emt 0:00:14]} Kf8 {[%emt 0:01:11]} 36. Kf4 {[%emt 0:02:55]} Ra2 {[%emt 0:02:44]} 37. Ke5 {[%emt 0:01:08]} Ke8 {[%emt 0:06:28]} ({Reject} 37... Rxf2 $6 38. Kd6 $16) 38. Rb7 {[%emt 0:02:47]} h4 {[%emt 0:01:47]} 39. f4 {[%emt 0:13:13]} (39. Kd6 $5 {[%cal Rb7b8]} Ra6+ 40. Ke5 $11) 39... Rc2 {[%emt 0:01:03]} 40. Kd6 {[%emt 0:00:00]} Rc8 {[%emt 0:00:00]} 41. Re7+ {[%emt 0:03:44]} Kf8 {[%emt 0:01:37]} 42. Ra7 {[%emt 0:00:08]} Ke8 {[%emt 0:00:38]} 43. Ke5 {[%emt 0:07:27]} Rc2 {[%emt 0:00:36]} 44. Rb7 {[%emt 0:01:35]} (44. f5 exf5 45. Kd6) 44... Ra2 {[%emt 0:00:57]} (44... Rxg2 $5 {[%cal Rh4h3]} 45. Kd6 f5 46. Kxe6 (46. Rxh7 Rg6 $17) 46... Re2+ 47. Kxf5 h3 $17) 45. Rc7 {[%emt 0:02:14]} Rb2 {[%emt 0:00:32]} 46. Ra7 {[%emt 0:00:06]} Rc2 $11 {[%emt 0:00:08] Ke4} (46... Rxg2 $5 {[%cal Rh4h3]} 47. Kd6 f5 48. Kxe6 Re2+ 49. Kxf5 h3 $15) 1/2-1/2

[Event "FIDE WCCC U10 2018"]
[Site "Santiago de Compostela"]
[Date "2018.11.14"]
[Round "10"]
[White "Vetokhin, Savva"]
[Black "De Albuquerque, Ian Telek C."]
[Result "1-0"]
[ECO "B50"]
[WhiteElo "1874"]
[BlackElo "1725"]
[Annotator "NA RC"]
[PlyCount "85"]
[EventDate "2018.11.04"]
[EventType "swiss"]
[EventCountry "ESP"]
[SourceTitle "playchess.com"]
[Source "ChessBase"]
[SourceQuality "1"]
[TimeControl "40/5400+30:1800+30"]

{[%evp 20,85,26,8,-19,0,-6,0,0,0,0,32767,31,32767,39,23,31,43,72,32767,86,32767,32767,83,86,32767,32767,32767,88,32767,32767,78,101,102,105,104,162,158,154,132,32767,68,66,32767,32767,13,91,110,369,32767,32767,32767,287,249,274,303,32767,164,202,15,32767,32767,32767,32767,416,419,479,515]} 1. e4 {[%emt 0:00:00]} c5 {[%emt 0:00:00]} 2. Nf3 {[%emt 0:00:00]} d6 {[%emt 0:00:00]} 3. g3 {[%emt 0:01:03]} Nc6 {[%emt 0:00:28]} 4. Bg2 {[%emt 0:00:10]} g6 {[%emt 0:00:18]} 5. d4 {[%emt 0:00:59]} cxd4 {[%emt 0:00:23]} 6. Nxd4 {[%emt 0:00:11]} Bg7 {[%emt 0:01:27]} 7. Be3 {[%emt 0:01:06]} Bd7 {[%emt 0:03:27]} 8. Nc3 {[%emt 0:01:52]} Nf6 {[%emt 0:00:17]} 9. O-O {[%emt 0:00:42]} O-O {[%emt 0:00:28]} 10. h3 {[%emt 0:01:16]} Rc8 {[%emt 0:01:53] LiveBook: 6 Games B50: Sizilianisch (Verschiedenes mit 2...d6)} (10... Ne5 11. Nde2 Qc8 12. Kh2 b5 13. a3 Re8 14. Qc1 a5 15. Nd5 Nxd5 16. exd5 b4 17. axb4 axb4 18. Rxa8 Qxa8 19. b3 Bb5 20. Re1 Rc8 21. Qd1 Bxe2 22. Rxe2 Qa6 {½-½ (22) Fedorov,A (2598)-Robson,R (2656) Khanty-Mansiysk 2017}) 11. Nb3 {[%emt 0:05:32]} Ne5 {[%emt 0:06:06]} 12. Nd2 {[%emt 0:11:23]} Nc4 $146 {[%emt 0:15:38]} ({Vorgänger:} 12... Qa5 13. f4 Nc4 14. Nxc4 Rxc4 15. Qd3 Rfc8 16. Rf2 Qb4 17. Re1 Qxb2 18. Nd1 Qb4 19. c3 Qa5 20. e5 Bf5 {0-1 (38) Kaushansky,L (2255)-Gurevich,D (2460) Illinois 1991}) 13. Nxc4 {[%emt 0:00:31]} Rxc4 {[%emt 0:00:13]} 14. Qd3 {[%emt 0:00:51]} Qc7 {[%emt 0:02:44]} 15. Bd4 {[%emt 0:02:11]} Rc8 {[%emt 0:03:05]} 16. Bxf6 {[%emt 0:03:32]} Bxf6 {[%emt 0:04:01]} 17. Nd5 {[%emt 0:00:05]} Qc5 {[%emt 0:03:01]} 18. c3 {[%emt 0:01:48]} Qb5 {[%emt 0:11:20]} 19. Rfb1 {[%emt 0:18:34]} R4c5 {[%emt 0:18:49]} 20. Nxf6+ exf6 21. Qxd6 {[%emt 0:04:57]} Be6 {[%emt 0:00:51]} 22. Qd2 {[%emt 0:01:28]} Qb6 {[%emt 0:06:12]} 23. Rd1 {[%emt 0:02:58]} R5c7 {[%emt 0:02:57]} 24. Qc2 {[%emt 0:00:55]} Kg7 {[%emt 0:00:49]} 25. Rd2 {[%emt 0:01:36]} Qb5 {[%emt 0:02:48]} 26. Qd3 {[%emt 0:00:35]} Qa4 {[%emt 0:01:56]} 27. Qe3 {[%emt 0:01:45]} a6 {[%emt 0:02:41]} (27... Rd7 $16 {was worth a try.}) 28. e5 {[%emt 0:00:52]} f5 {[%emt 0:02:23]} 29. Qg5 {[%emt 0:01:25]} Rd7 {[%emt 0:00:21]} 30. Rxd7 {[%emt 0:00:28]} (30. Qf6+ $18 Kg8 31. b3) 30... Qxd7 {[%emt 0:00:15]} 31. Bf3 {[%emt 0:00:52]} Qd3 {[%emt 0:03:01]} 32. Qe3 {[%emt 0:03:50]} Qb5 {[%emt 0:04:00]} (32... Qxe3 $11 33. fxe3 b5) 33. b3 {[%emt 0:02:29]} Rc5 $2 {[%emt 0:05:18]} (33... Qa5 $16) 34. c4 {[%emt 0:01:01]} Qa5 {[%emt 0:00:35]} 35. Qd4 {[%emt 0:02:01]} Kg8 $2 {[%emt 0:01:07]} (35... Rc7 $16) 36. Bxb7 {[%emt 0:02:06]} Rxe5 {[%emt 0:01:54] [#]} 37. b4 $1 {[%emt 0:00:27]} Qc7 {[%emt 0:00:14]} 38. Bxa6 {[%emt 0:00:45]} Re4 {[%emt 0:00:15]} 39. Qc5 $2 {[%emt 0:01:49]} (39. Qc3 $18) 39... Qxc5 {[%emt 0:00:25]} 40. bxc5 {[%emt 0:00:00]} Bxc4 {[%emt 0:00:00]} 41. Bb7 {[%emt 0:00:09]} Re5 {[%emt 0:00:46]} 42. c6 {[%emt 0:00:09]} Rc5 $18 {[%emt 0:00:50]} 43. Rc1 {[%emt 0:00:06]} 1-0